bitfinex/quotes_BTCUSD_20250830
["timestamp","ask_amount","ask_price","bid_price","bid_amount"]
[1756517913128,0.77213586,108250.0,108240.0,0.15972249]
[1756517913329,0.77213586,108250.0,108240.0,0.0949718]
[1756517914854,0.77213586,108250.0,108240.0,0.27974637]
[1756517916550,0.77222586,108250.0,108240.0,0.0949718]
[1756517916764,1.54444422,108250.0,108240.0,0.00147548]
[1756517916987,1.54449422,108250.0,108240.0,0.00147548]
[1756517917192,1.63279054,108250.0,108240.0,0.00147548]
[1756517917758,1.63279054,108250.0,108240.0,0.00047548]
[1756517917938,1.63274054,108250.0,108240.0,0.00047548]
[1756517918294,0.76830382,108250.0,108240.0,0.00047548]
[1756517918510,1.63274054,108250.0,108240.0,0.00047548]
[1756517919801,1.63374054,108250.0,108240.0,0.00047548]
[1756517921282,1.63379054,108250.0,108240.0,0.00047548]
[1756517922894,1.63374054,108250.0,108240.0,0.00047548]
[1756517926523,1.6338213,108250.0,108240.0,0.00047548]
[1756517932121,1.6338213,108250.0,108240.0,0.00357548]
[1756517932326,0.5258475,108250.0,108240.0,0.00557548]
[1756517932534,0.95801624,108250.0,108240.0,0.00557548]
[1756517932749,0.49616,108250.0,108240.0,0.19035005]
[1756517932948,0.49616,108250.0,108240.0,0.00557548]
[1756517932949,0.77317624,108250.0,108240.0,0.00557548]
[1756517933152,1.11317624,108250.0,108240.0,0.00557548]
[1756517933559,0.95801624,108250.0,108240.0,0.00557548]
[1756517933776,0.95701624,108250.0,108240.0,0.00557548]
[1756517933982,0.95701624,108250.0,108240.0,0.19035005]
[1756517934524,0.95701624,108250.0,108240.0,0.24615735]
[1756517935736,0.43225874,108250.0,108240.0,0.24715735]
[1756517936103,0.61701624,108250.0,108240.0,0.24715735]
[1756517936877,0.1847575,108250.0,108240.0,0.24715735]
[1756517937081,0.61701624,108250.0,108240.0,0.24715735]
[1756517937517,0.61699917,108260.0,108250.0,0.1847575]
[1756517937721,1.11215917,108260.0,108250.0,0.22045415]
[1756517938134,0.95699917,108260.0,108250.0,0.22045415]
[1756517939368,0.95674982,108260.0,108250.0,0.22045415]
[1756517939997,0.95674982,108260.0,108250.0,0.0051]
[1756517940418,1.11186982,108260.0,108250.0,0.0051]
[1756517941068,1.11195982,108260.0,108250.0,0.0051]
[1756517941263,1.11186982,108260.0,108250.0,0.0051]
[1756517942206,0.95674982,108260.0,108250.0,0.0051]
[1756517942381,1.11186982,108260.0,108250.0,0.0051]
[1756517942833,1.11186982,108260.0,108250.0,0.1898575]
[1756517944990,1.11186982,108260.0,108250.0,0.0051]
[1756517947316,0.95674982,108260.0,108250.0,0.0051]
[1756517947520,1.11186982,108260.0,108250.0,0.0051]
[1756517947822,1.11186982,108260.0,108250.0,0.1898575]
[1756517949410,0.95674982,108260.0,108250.0,0.1898575]
[1756517951606,1.11186982,108260.0,108250.0,0.1898575]
[1756517952928,0.95674982,108260.0,108250.0,0.1898575]
[1756517953298,0.95674982,108260.0,108250.0,0.3449775]
[1756517953547,1.11186982,108260.0,108250.0,0.0051]
[1756517959999,1.11195982,108260.0,108250.0,0.0051]
[1756517961365,1.54406617,108260.0,108250.0,0.0051]
[1756517962710,0.1847575,108250.0,108240.0,0.02824448]
[1756517962910,0.1847575,108250.0,108240.0,0.00047548]
[1756517962911,1.20395324,108250.0,108240.0,0.00047548]
[1756517963205,1.54404324,108250.0,108240.0,0.00047548]
[1756517964053,1.54404324,108250.0,108240.0,0.00147548]
[1756517964650,1.54409324,108250.0,108240.0,0.00147548]
[1756517964898,1.63238956,108250.0,108240.0,0.00147548]
[1756517965117,1.66016256,108250.0,108240.0,0.00047548]
[1756517965536,1.66067194,108250.0,108240.0,0.00047548]
[1756517967048,1.66167194,108250.0,108240.0,0.00047548]
[1756517967487,1.66067194,108250.0,108240.0,0.00047548]
[1756517967668,1.66167194,108250.0,108240.0,0.00047548]
[1756517971354,1.66162194,108250.0,108240.0,0.00047548]
[1756517972255,1.66167194,108250.0,108240.0,0.00047548]
[1756517972454,1.66162194,108250.0,108240.0,0.00047548]
[1756517974337,1.66062194,108250.0,108240.0,0.00047548]
[1756517974752,1.66162194,108250.0,108240.0,0.00047548]
[1756517974968,1.47163418,108250.0,108240.0,0.00047548]
[1756517975207,1.65639168,108250.0,108240.0,0.00047548]
[1756517975814,1.56809536,108250.0,108240.0,0.00047548]
[1756517976549,1.56709536,108250.0,108240.0,0.00047548]
[1756517977784,1.1347828,108250.0,108240.0,0.00371548]
[1756517980923,1.1346928,108250.0,108240.0,0.00571548]
[1756517981139,1.1347828,108250.0,108240.0,0.00571548]
[1756517981937,0.74519137,108250.0,108240.0,0.00571548]
[1756517982148,1.17750393,108250.0,108240.0,0.00571548]
[1756517982811,1.17750393,108250.0,108240.0,0.00371548]
[1756517985290,1.60966041,108250.0,108240.0,0.00371548]
[1756517986888,1.56693928,108250.0,108240.0,0.00371548]
[1756517990200,1.41699954,108250.0,108240.0,0.00569548]
[1756517990405,0.7076105,108250.0,108240.0,0.00569548]
[1756517990633,1.11207202,108250.0,108240.0,0.00569548]
[1756517990991,0.15508,108250.0,108240.0,0.19047005]
[1756517991346,0.58715638,108250.0,108240.0,0.22799615]
[1756517991728,0.77191388,108250.0,108240.0,0.22799615]
[1756517991933,0.77191388,108250.0,108240.0,0.19047005]
[1756517992780,0.77191388,108250.0,108240.0,0.19147005]
[1756517996542,0.43207638,108250.0,108240.0,0.27976637]
[1756517998027,0.41086043,108260.0,108240.0,0.27976637]
[1756517998284,0.43207638,108250.0,108240.0,0.27652637]
[1756517998491,0.43207638,108250.0,108240.0,0.34094331]
[1756517998846,0.43207638,108250.0,108240.0,0.34316331]
[1756517999967,0.43207638,108250.0,108240.0,0.34416331]
[1756518000303,0.61683388,108250.0,108240.0,0.0949718]
[1756518001164,0.61683388,108250.0,108240.0,0.27974637]
[1756518001781,0.1847575,108250.0,108240.0,0.27974637]
[1756518002015,0.61683388,108250.0,108240.0,0.27974637]
[1756518002378,0.43207638,108250.0,108240.0,0.27974637]
[1756518002622,0.18474043,108260.0,108240.0,0.34448131]
[1756518002846,1.11185681,108260.0,108250.0,0.1847575]
[1756518003089,1.11185681,108260.0,108250.0,0.1899575]
[1756518003307,1.11185681,108260.0,108250.0,0.0052]
[1756518004391,0.1847575,108250.0,108240.0,0.2747998]
[1756518004606,0.61683388,108250.0,108240.0,0.1217398]
[1756518005889,0.61683388,108250.0,108240.0,0.1227398]
[1756518006307,0.61683388,108250.0,108240.0,0.30751437]
[1756518006664,0.61683388,108250.0,108240.0,0.46255437]
[1756518007267,0.7052202,108250.0,108240.0,0.1207598]
[1756518007682,0.7052202,108250.0,108240.0,0.0897718]
[1756518007881,0.7052202,108250.0,108240.0,0.00147548]
[1756518008303,1.47729658,108250.0,108240.0,0.00147548]
[1756518008503,1.47734658,108250.0,108240.0,0.00147548]
[1756518008629,1.0730442,108250.0,108240.0,0.00147548]
[1756518009085,1.50512058,108250.0,108240.0,0.00147548]
[1756518009291,1.50512058,108250.0,108240.0,0.00047548]
[1756518009516,1.2280842,108250.0,108240.0,0.00047548]
[1756518009717,1.66016058,108250.0,108240.0,0.00047548]
[1756518011391,1.66116058,108250.0,108240.0,0.00047548]
[1756518011842,1.66016058,108250.0,108240.0,0.00047548]
[1756518012277,1.66116058,108250.0,108240.0,0.00047548]
[1756518014409,1.66111058,108250.0,108240.0,0.00047548]
[1756518019781,0.98569788,108250.0,108240.0,0.00047548]
[1756518019992,1.14073788,108250.0,108240.0,0.00574548]
[1756518020166,1.14064788,108250.0,108240.0,0.00574548]
[1756518020413,1.14073788,108250.0,108240.0,0.00574548]
[1756518020530,1.14073788,108250.0,108240.0,0.00364548]
[1756518020973,1.13973788,108250.0,108240.0,0.00364548]
[1756518021354,1.14073788,108250.0,108240.0,0.00047548]
[1756518021782,1.13973788,108250.0,108240.0,0.00047548]
[1756518021956,1.13973788,108250.0,108240.0,0.00364548]
[1756518023470,0.18479164,108230.0,108220.0,0.19916313]
[1756518023689,0.61686802,108230.0,108220.0,0.28745945]
[1756518023888,0.61686802,108230.0,108220.0,0.28955945]
[1756518024740,0.63563666,108230.0,108220.0,0.28955945]
[1756518025149,0.63563666,108230.0,108220.0,0.29155945]
[1756518025603,0.63563666,108230.0,108220.0,0.29472945]
[1756518029156,0.45084502,108230.0,108220.0,0.29472945]
[1756518029523,0.63563666,108230.0,108220.0,0.29472945]
[1756518031603,0.45084502,108230.0,108220.0,0.29472945]
[1756518033010,0.63563666,108230.0,108220.0,0.29472945]
[1756518033437,0.63577843,108230.0,108220.0,0.29472945]
[1756518036878,0.01876864,108230.0,108220.0,0.29472945]
[1756518037076,0.01876864,108230.0,108220.0,0.7269476]
[1756518037282,0.95699372,108240.0,108220.0,0.29472945]
[1756518037484,0.95699372,108240.0,108230.0,0.15817]
[1756518037687,0.95699372,108240.0,108230.0,0.16027]
[1756518037960,0.95906372,108240.0,108230.0,0.34506164]
[1756518038172,0.95699372,108240.0,108230.0,0.34506164]
[1756518038393,0.34947258,108250.0,108230.0,0.43335796]
[1756518038619,0.34947258,108250.0,108230.0,0.43018796]
[1756518038844,0.43221815,108240.0,108230.0,0.43018796]
[1756518039271,0.43221815,108240.0,108230.0,0.43335796]
[1756518039620,0.34947258,108250.0,108230.0,0.43335796]
[1756518039621,0.78159112,108250.0,108230.0,0.43335796]
[1756518039801,0.79989163,108250.0,108230.0,0.43335796]
[1756518040007,0.79989163,108250.0,108230.0,0.43435796]
[1756518040809,0.79989163,108250.0,108230.0,0.49771007]
[1756518041012,1.13989163,108250.0,108240.0,0.18794457]
[1756518041265,1.13989163,108250.0,108240.0,0.19004457]
[1756518041695,1.14196163,108250.0,108240.0,0.19004457]
[1756518042927,1.14196163,108250.0,108240.0,0.00527]
[1756518045551,1.14196163,108250.0,108230.0,0.45902996]
[1756518050070,1.14196163,108250.0,108230.0,0.52433776]
[1756518050219,1.14196163,108250.0,108240.0,0.00207]
[1756518050426,1.14196163,108250.0,108240.0,0.00508]
[1756518051643,1.14196163,108250.0,108240.0,0.18985457]
[1756518052273,1.14196163,108250.0,108240.0,0.19085457]
[1756518059286,1.14197014,108250.0,108240.0,0.19085457]
[1756518060710,1.14193014,108250.0,108240.0,0.19085457]
[1756518061512,1.14193014,108250.0,108240.0,0.18784457]
[1756518062341,1.14193014,108250.0,108240.0,0.00307]
[1756518062740,1.14193014,108250.0,108240.0,0.001]
[1756518065014,0.89544852,108250.0,108240.0,0.001]
[1756518065570,1.0802377,108250.0,108240.0,0.001]
[1756518065774,1.08947557,108250.0,108240.0,0.001]
[1756518066617,1.10839681,108250.0,108240.0,0.001]
[1756518067617,1.63194018,108250.0,108240.0,0.001]
[1756518068196,1.54364386,108250.0,108240.0,0.001]
[1756518068418,0.18477457,108240.0,108230.0,0.43101769]
[1756518068807,1.04902867,108240.0,108230.0,0.43308769]
[1756518069654,1.04902867,108240.0,108230.0,0.43408769]
[1756518070099,1.05105867,108240.0,108230.0,0.43408769]
[1756518070322,1.05105867,108240.0,108230.0,0.24929632]
[1756518071524,1.05105867,108240.0,108230.0,0.08929632]
[1756518071722,1.29739499,108240.0,108230.0,0.001]
[1756518073102,1.63739499,108240.0,108230.0,0.001]
[1756518074872,0.18480387,108230.0,108210.0,0.37976831]
[1756518075076,0.61693577,108220.0,108210.0,0.24578713]
[1756518075318,0.61693577,108220.0,108210.0,0.08829632]
[1756518075319,1.20913282,108220.0,108210.0,0.08829632]
[1756518075455,1.20601282,108220.0,108210.0,0.08829632]
[1756518076068,1.20601282,108220.0,108210.0,0.08929632]
[1756518076272,1.20601282,108220.0,108210.0,0.09437632]
[1756518077114,1.20601282,108220.0,108210.0,0.09337632]
[1756518077311,0.61922038,108220.0,108210.0,0.09337632]
[1756518078112,0.61922038,108220.0,108210.0,0.09437632]
[1756518078863,0.61922038,108220.0,108210.0,0.08929632]
[1756518079225,0.77414038,108220.0,108210.0,0.09434632]
[1756518081353,0.00203,108220.0,108210.0,0.27917212]
[1756518081562,0.61922038,108220.0,108210.0,0.27917212]
[1756518081801,0.61922038,108220.0,108210.0,0.43409212]
[1756518092060,0.61922038,108220.0,108210.0,0.24926632]
[1756518093055,0.61922038,108220.0,108210.0,0.2997812]
[1756518093698,0.18683872,108220.0,108210.0,0.484607]
[1756518093903,0.61922038,108220.0,108210.0,0.484607]
[1756518095540,0.61922038,108220.0,108210.0,0.43409212]
[1756518096842,0.43441166,108220.0,108210.0,0.43409212]
[1756518096989,0.18683872,108220.0,108210.0,0.43409212]
[1756518097189,0.61922038,108220.0,108210.0,0.43409212]
[1756518097434,1.05149912,108220.0,108210.0,0.43409212]
[1756518099004,1.05149912,108220.0,108210.0,0.42904212]
[1756518099355,1.05149912,108220.0,108210.0,0.24922632]
[1756518101142,1.05149912,108220.0,108210.0,0.43405212]
[1756518102416,0.18683872,108220.0,108210.0,0.43405212]
[1756518102601,1.05149912,108220.0,108210.0,0.43405212]
[1756518103536,0.18683872,108220.0,108210.0,0.43405212]
[1756518103692,1.05149912,108220.0,108210.0,0.43405212]
[1756518103894,1.05149912,108220.0,108210.0,0.50304558]
[1756518106307,1.05149912,108220.0,108210.0,0.08929632]
[1756518106308,1.20637912,108220.0,108210.0,0.08929632]
[1756518106707,1.20637912,108220.0,108210.0,0.24417632]
[1756518106911,1.20637912,108220.0,108210.0,0.08929632]
[1756518107348,1.20637912,108220.0,108210.0,0.09134632]
[1756518107550,1.20637912,108220.0,108210.0,0.09034632]
[1756518108308,1.20637912,108220.0,108210.0,0.08829632]
[1756518108549,0.34171872,108220.0,108210.0,0.09334632]
[1756518108773,1.20637912,108220.0,108210.0,0.09034632]
[1756518109450,1.20637912,108220.0,108210.0,0.09349632]
[1756518110444,1.20637912,108220.0,108210.0,0.09358632]
[1756518111679,1.20637912,108220.0,108210.0,0.08829632]
[1756518114786,0.34171872,108220.0,108210.0,0.09358632]
[1756518114918,1.05149912,108220.0,108210.0,0.09358632]
[1756518115128,1.20649912,108220.0,108210.0,0.09358632]
[1756518115351,1.20649912,108220.0,108210.0,0.13691651]
[1756518115756,1.05149912,108220.0,108210.0,0.13691651]
[1756518116375,1.05149912,108220.0,108210.0,0.09358632]
[1756518117752,0.34191872,108220.0,108210.0,0.09358632]
[1756518117968,1.20657912,108220.0,108210.0,0.09358632]
[1756518120889,1.20657912,108220.0,108210.0,0.27841212]
[1756518123120,0.34191872,108220.0,108210.0,0.27841212]
[1756518123340,1.20657912,108220.0,108210.0,0.27841212]
[1756518124784,1.05149912,108220.0,108210.0,0.27841212]
[1756518124990,1.20653912,108220.0,108210.0,0.27841212]
[1756518126592,1.20653912,108220.0,108210.0,0.24547632]
[1756518126801,0.34187872,108220.0,108210.0,0.24547632]
[1756518127010,1.20653912,108220.0,108210.0,0.24547632]
[1756518127698,1.20653912,108220.0,108210.0,0.09043632]
[1756518127929,1.20653912,108220.0,108210.0,0.08829632]
[1756518129467,0.34187872,108220.0,108210.0,0.08829632]
[1756518129677,1.20653912,108220.0,108210.0,0.08829632]
[1756518133540,1.20653912,108220.0,108210.0,0.08929632]
[1756518139292,1.20653912,108220.0,108210.0,0.27412212]
[1756518139495,1.20653912,108220.0,108210.0,0.27929212]
[1756518139496,0.34171872,108220.0,108210.0,0.27929212]
[1756518139715,0.21258187,108230.0,108210.0,0.27929212]
[1756518139912,0.4323302,108220.0,108210.0,0.34083059]
[1756518140237,0.61713892,108220.0,108210.0,0.34083059]
[1756518140471,0.61713892,108220.0,108210.0,0.27929212]
[1756518140687,0.61713892,108220.0,108210.0,0.27829212]
[1756518140884,1.04946912,108220.0,108210.0,0.27829212]
[1756518142596,1.04946912,108220.0,108210.0,0.27929212]
[1756518143471,0.21258187,108230.0,108220.0,0.18480872]
[1756518143703,0.77400407,108230.0,108220.0,0.09346632]
[1756518144016,0.77400407,108230.0,108220.0,0.09032632]
[1756518144891,0.77400407,108230.0,108220.0,0.08829632]
[1756518145951,0.77400407,108230.0,108220.0,0.27310504]
[1756518146175,0.77400407,108230.0,108220.0,0.27827504]
[1756518146399,0.5872102,108230.0,108220.0,0.34285062]
[1756518147600,0.61712184,108230.0,108220.0,0.34285062]
[1756518148041,0.99411849,108240.0,108230.0,0.18479164]
[1756518148249,1.55355369,108240.0,108230.0,0.18996164]
[1756518148462,1.55554369,108240.0,108230.0,0.18996164]
[1756518148680,0.69088329,108240.0,108230.0,0.18996164]
[1756518148909,1.55554369,108240.0,108230.0,0.18996164]
[1756518149436,1.55654369,108240.0,108230.0,0.18996164]
[1756518149674,1.55654369,108240.0,108230.0,0.00517]
[1756518149912,1.55554369,108240.0,108230.0,0.00517]
[1756518150148,1.55554369,108240.0,108230.0,0.00203]
[1756518150678,0.69088329,108240.0,108230.0,0.00203]
[1756518150859,1.55554369,108240.0,108230.0,0.00203]
[1756518150998,1.55554369,108240.0,108220.0,0.36859462]
[1756518151210,0.4323302,108230.0,108220.0,0.45889904]
[1756518151453,0.4323302,108230.0,108220.0,0.46092904]
[1756518152225,0.68889329,108240.0,108220.0,0.46092904]
[1756518152424,0.68889329,108240.0,108230.0,0.18479164]
[1756518152640,1.55554369,108240.0,108230.0,0.18479164]
[1756518152845,1.55554369,108240.0,108220.0,0.53158665]
[1756518153095,0.2338386,108230.0,108220.0,0.53158665]
[1756518153291,0.2338386,108230.0,108220.0,0.53361665]
[1756518154092,0.15492,108240.0,108230.0,0.18479164]
[1756518154304,0.5872502,108240.0,108230.0,0.2920543]
[1756518154490,1.0195804,108240.0,108230.0,0.2920543]
[1756518156294,0.8646604,108240.0,108230.0,0.2920543]
[1756518157191,0.24072229,108250.0,108230.0,0.2920543]
[1756518157480,1.14019849,108250.0,108240.0,0.18791457]
[1756518157680,0.70985829,108250.0,108240.0,0.18477457]
[1756518158574,0.55294829,108250.0,108240.0,0.18680457]
[1756518158876,1.13391894,108250.0,108240.0,0.18994457]
[1756518159237,1.13291894,108250.0,108240.0,0.18994457]
[1756518159863,1.13291894,108250.0,108240.0,0.00517]
[1756518163486,1.13291894,108250.0,108240.0,0.18994457]
[1756518163687,1.13291894,108250.0,108240.0,0.24040456]
[1756518164927,0.79125144,108250.0,108240.0,0.24040456]
[1756518165130,0.60613144,108250.0,108240.0,0.32870088]
[1756518165560,0.60812144,108250.0,108240.0,0.32870088]
[1756518166318,0.60812144,108250.0,108240.0,0.48358088]
[1756518166467,0.17579124,108250.0,108240.0,0.48358088]
[1756518166642,0.60812144,108250.0,108240.0,0.48358088]
[1756518167624,0.60613144,108250.0,108240.0,0.48358088]
[1756518168791,0.45125144,108250.0,108240.0,0.48358088]
[1756518168940,0.60613144,108250.0,108240.0,0.48358088]
[1756518169539,0.17380124,108250.0,108240.0,0.48358088]
[1756518169750,0.60613144,108250.0,108240.0,0.48358088]
[1756518170069,0.60821144,108250.0,108240.0,0.48358088]
[1756518171922,0.27380124,108250.0,108240.0,0.48358088]
[1756518172130,0.70613144,108250.0,108240.0,0.48358088]
[1756518172330,0.48764332,108250.0,108240.0,0.48358088]
[1756518172554,0.24489283,108250.0,108240.0,0.48358088]
[1756518172688,0.43173033,108250.0,108240.0,0.48358088]
[1756518173924,0.46906506,108250.0,108240.0,0.48358088]
[1756518176393,0.28430756,108250.0,108240.0,0.48358088]
[1756518177560,0.28222756,108250.0,108240.0,0.48358088]
[1756518180365,0.28425756,108250.0,108240.0,0.48358088]
[1756518181826,0.46901506,108250.0,108240.0,0.42795089]
[1756518182007,0.46901506,108250.0,108240.0,0.43003089]
[1756518182211,0.47217506,108250.0,108240.0,0.24317632]
[1756518183047,0.47217506,108250.0,108240.0,0.24313632]
[1756518183245,0.46901506,108250.0,108240.0,0.24313632]
[1756518183476,0.56901506,108250.0,108240.0,0.24313632]
[1756518186693,0.56901506,108250.0,108240.0,0.08829632]
[1756518186897,0.56901506,108250.0,108240.0,0.24313632]
[1756518191039,0.59678506,108250.0,108240.0,0.24313632]
[1756518194517,0.59678506,108250.0,108240.0,0.24844632]
[1756518195597,0.59678506,108250.0,108240.0,0.24313632]
[1756518197077,0.59678506,108250.0,108240.0,0.24844632]
[1756518201561,0.35189223,108250.0,108240.0,0.24844632]
[1756518201777,0.78422243,108250.0,108240.0,0.29177012]
[1756518202811,0.78422243,108250.0,108240.0,0.24844632]
[1756518205654,0.35189223,108250.0,108240.0,0.24844632]
[1756518205805,0.78422243,108250.0,108240.0,0.24844632]
[1756518207687,0.78422243,108250.0,108240.0,0.24521632]
[1756518208040,0.18477457,108240.0,108230.0,0.15484]
[1756518208270,1.20720497,108240.0,108230.0,0.15484]
[1756518208413,0.18479164,108230.0,108220.0,0.15807]
[1756518208629,0.61923184,108230.0,108220.0,0.24636632]
[1756518209654,0.61923184,108230.0,108220.0,0.08829632]
[1756518209876,0.61923184,108230.0,108220.0,0.24636632]
[1756518210118,0.61923184,108230.0,108220.0,0.25040632]
[1756518212262,0.64700584,108230.0,108220.0,0.25040632]
[1756518214029,0.64700584,108230.0,108220.0,0.24717632]
[1756518214154,0.64700584,108230.0,108220.0,0.24513632]
[1756518214805,0.64700584,108230.0,108220.0,0.24717632]
[1756518215032,0.64700584,108230.0,108220.0,0.25040632]
[1756518217937,0.64700584,108230.0,108220.0,0.24513632]
[1756518220588,0.64700584,108230.0,108220.0,0.25040632]
[1756518221468,0.64993584,108230.0,108220.0,0.24513632]
[1756518221668,0.64700584,108230.0,108220.0,0.24513632]
[1756518222200,1.07823216,108230.0,108220.0,0.002]
[1756518222395,0.64297196,108230.0,108210.0,0.2592088]
[1756518222617,0.64297196,108230.0,108220.0,0.16011]
[1756518222618,0.98700584,108230.0,108220.0,0.16011]
[1756518222794,0.95923184,108230.0,108220.0,0.16111]
[1756518223191,0.98700784,108230.0,108220.0,0.16111]
[1756518224390,0.98700784,108230.0,108220.0,0.16011]
[1756518225677,1.08700784,108230.0,108220.0,0.16011]
[1756518229370,1.08700784,108230.0,108220.0,0.15688]
[1756518229756,1.08700784,108230.0,108220.0,0.16001]
[1756518232704,1.08697059,108230.0,108220.0,0.16001]
[1756518234715,1.08697059,108230.0,108220.0,0.16101]
[1756518236054,1.08697059,108230.0,108220.0,0.15788]
[1756518236483,1.08697059,108230.0,108220.0,0.15584]
[1756518237037,0.65467764,108230.0,108220.0,0.15786]
[1756518237242,1.08697059,108230.0,108220.0,0.15786]
[1756518237890,1.08697059,108230.0,108220.0,0.16099]
[1756518239322,1.08697059,108230.0,108220.0,0.15786]
[1756518240440,1.08697059,108230.0,108220.0,0.15584]
[1756518241713,0.65467764,108230.0,108220.0,0.15584]
[1756518241914,1.08697059,108230.0,108220.0,0.15584]
[1756518245823,0.65467764,108230.0,108220.0,0.15786]
[1756518246030,1.08486059,108230.0,108220.0,0.39601223]
[1756518246456,1.08486059,108230.0,108220.0,0.21120351]
[1756518247384,1.08693059,108230.0,108220.0,0.15584]
[1756518247590,1.08693059,108230.0,108220.0,0.16099]
[1756518247795,1.08486059,108230.0,108220.0,0.16099]
[1756518248360,1.08693059,108230.0,108220.0,0.16099]
[1756518249589,1.08693059,108230.0,108220.0,0.001]
[1756518249792,1.08693059,108230.0,108220.0,0.1558]
[1756518250370,1.08693059,108230.0,108220.0,0.16095]
[1756518253367,1.08693059,108230.0,108220.0,0.15782]
[1756518253793,1.08693059,108230.0,108220.0,0.1558]
[1756518253952,1.08693059,108230.0,108220.0,0.15782]
[1756518255628,1.08693059,108230.0,108220.0,0.1558]
[1756518257779,0.65463764,108230.0,108220.0,0.16095]
[1756518257969,1.08693059,108230.0,108220.0,0.16095]
[1756518258172,1.08486059,108230.0,108220.0,0.16095]
[1756518259174,1.08691059,108230.0,108220.0,0.15995]
[1756518259423,1.08691059,108230.0,108220.0,0.16095]
[1756518260433,1.08691059,108230.0,108220.0,0.15995]
[1756518260748,0.65256764,108230.0,108220.0,0.15995]
[1756518260958,1.08486059,108230.0,108220.0,0.15995]
[1756518261170,0.467776,108230.0,108220.0,0.43305504]
[1756518261370,1.08486059,108230.0,108220.0,0.43305504]
[1756518261926,1.08486059,108230.0,108220.0,0.43405504]
[1756518262311,1.08486059,108230.0,108220.0,0.24924632]
[1756518262526,1.08486059,108230.0,108220.0,0.24824632]
[1756518262726,1.08486059,108230.0,108220.0,0.25024632]
[1756518263126,1.08691059,108230.0,108220.0,0.25024632]
[1756518263413,0.65256764,108230.0,108220.0,0.43505504]
[1756518263613,1.08486059,108230.0,108220.0,0.43505504]
[1756518265221,1.08691059,108230.0,108220.0,0.43505504]
[1756518268437,0.65461764,108230.0,108220.0,0.43505504]
[1756518268616,1.08691059,108230.0,108220.0,0.43505504]
[1756518269798,1.08691059,108230.0,108220.0,0.25024632]
[1756518271978,1.08486059,108230.0,108220.0,0.43505504]
[1756518274147,1.08486059,108230.0,108220.0,0.25024632]
[1756518274419,1.08691059,108230.0,108220.0,0.25024632]
[1756518277193,1.08486059,108230.0,108220.0,0.25024632]
[1756518278372,1.08691059,108230.0,108220.0,0.25024632]
[1756518279538,1.08691059,108230.0,108220.0,0.25020632]
[1756518280607,1.08691059,108230.0,108220.0,0.09029632]
[1756518280828,1.08986059,108230.0,108220.0,0.24505632]
[1756518281371,1.24462059,108230.0,108220.0,0.002]
[1756518281613,1.67691354,108230.0,108220.0,0.15476]
[1756518281814,1.24462059,108230.0,108220.0,0.15476]
[1756518282013,1.24462059,108230.0,108220.0,0.15576]
[1756518282449,1.24462059,108230.0,108220.0,0.15476]
[1756518282646,1.24462059,108230.0,108220.0,0.15576]
[1756518282844,1.29521265,108230.0,108220.0,0.15576]
[1756518283515,1.29521265,108230.0,108220.0,0.001]
[1756518286676,1.7275056,108230.0,108220.0,0.001]
[1756518287749,0.18480872,108220.0,108210.0,0.154833]
[1756518287954,1.05439462,108220.0,108210.0,0.154833]
[1756518288418,1.08217362,108220.0,108210.0,0.154833]
[1756518289040,0.21758772,108220.0,108210.0,0.154833]
[1756518289262,0.71624812,108220.0,108210.0,0.154833]
[1756518290045,0.21463772,108220.0,108210.0,0.156933]
[1756518290245,1.07922362,108220.0,108210.0,0.160073]
[1756518290463,1.07922362,108220.0,108210.0,0.161073]
[1756518290813,0.64693067,108220.0,108210.0,0.161073]
[1756518294247,0.74693067,108220.0,108210.0,0.161073]
[1756518296052,0.74488067,108220.0,108210.0,0.161073]
[1756518296677,0.74699067,108220.0,108210.0,0.161073]
[1756518300530,0.74488067,108220.0,108210.0,0.3458988]
[1756518300751,0.56007195,108220.0,108210.0,0.3458988]
[1756518300949,0.74488067,108220.0,108210.0,0.3458988]
[1756518302152,0.74699067,108220.0,108210.0,0.3458988]
[1756518303203,0.31469772,108220.0,108210.0,0.3458988]
[1756518303707,0.74699067,108220.0,108210.0,0.3458988]
[1756518304783,0.74699067,108220.0,108210.0,0.161073]
[1756518305409,0.31469772,108220.0,108210.0,0.161073]
[1756518305631,0.74699067,108220.0,108210.0,0.161073]
[1756518308284,0.74699067,108220.0,108210.0,0.155833]
[1756518308970,0.74699067,108220.0,108210.0,0.001073]
[1756518309123,0.74699067,108220.0,108210.0,0.155833]
[1756518309300,1.24511283,108220.0,108210.0,0.155833]
[1756518310422,1.17928362,108220.0,108210.0,0.155833]
[1756518312601,1.17928362,108220.0,108210.0,0.001073]
[1756518312789,1.17928362,108220.0,108210.0,0.155833]
[1756518314868,0.74699067,108220.0,108210.0,0.157933]
[1756518315063,0.31469772,108220.0,108210.0,0.3458988]
[1756518315265,0.74488067,108220.0,108210.0,0.161073]
[1756518317605,0.74699067,108220.0,108210.0,0.003173]
[1756518317812,0.74699067,108220.0,108210.0,0.155833]
[1756518318016,0.74699067,108220.0,108210.0,0.001073]
[1756518318223,1.27058994,108220.0,108210.0,0.155833]
[1756518318523,1.26757994,108220.0,108210.0,0.155833]
[1756518319320,1.26757994,108220.0,108210.0,0.001073]
[1756518319565,1.26757994,108220.0,108210.0,0.155833]
[1756518319566,1.27066994,108220.0,108210.0,0.155833]
[1756518319770,1.26757994,108220.0,108210.0,0.155833]
[1756518320588,0.83528699,108220.0,108210.0,0.155833]
[1756518320828,0.51131959,108220.0,108210.0,0.155833]
[1756518321037,0.53909759,108220.0,108210.0,0.155833]
[1756518322250,0.53909759,108220.0,108210.0,0.001073]
[1756518322474,0.53909759,108220.0,108210.0,0.155833]
[1756518322675,0.53600759,108220.0,108210.0,0.155833]
[1756518324289,0.62430391,108220.0,108210.0,0.155833]
[1756518326136,0.62430391,108220.0,108210.0,0.001073]
[1756518326330,0.62430391,108220.0,108210.0,0.155953]
[1756518327561,1.55143686,108220.0,108210.0,0.001073]
[1756518327770,1.55452686,108220.0,108210.0,0.001073]
[1756518329030,1.55452686,108220.0,108210.0,7.3e-05]
[1756518329031,1.98681981,108220.0,108210.0,7.3e-05]
[1756518329619,2.07511613,108220.0,108210.0,7.3e-05]
[1756518329849,2.092372,108220.0,108210.0,7.3e-05]
[1756518330223,2.09236551,108220.0,108210.0,7.3e-05]
[1756518330623,1.93752551,108220.0,108210.0,7.3e-05]
[1756518330996,2.09248551,108220.0,108210.0,7.3e-05]
[1756518331200,2.07523613,108220.0,108210.0,7.3e-05]
[1756518332899,2.07623613,108220.0,108210.0,7.3e-05]
[1756518334308,2.09347049,108220.0,108210.0,7.3e-05]
[1756518334514,2.16455049,108220.0,108210.0,7.3e-05]
[1756518336341,2.1645416,108220.0,108210.0,7.3e-05]
[1756518337354,0.86766275,108220.0,108210.0,7.3e-05]
[1756518337559,2.1645416,108220.0,108210.0,7.3e-05]
[1756518338567,2.1635416,108220.0,108210.0,7.3e-05]
[1756518338972,2.1655416,108220.0,108210.0,7.3e-05]
[1756518339288,2.3483616,108220.0,108210.0,7.3e-05]